[Event "Božićni turnir u VaraždinskimToplicama 26.12.2025."]
[Site "Varazdinske Toplice, Croatia"]
[Date "2025.12.26"]
[Round "9.9"]
[White "Srsan, Matija"]
[Black "Kodric, Vladimir"]
[Result "1-0"]
[TimeControl "10"]
[WhiteFideId "14520001"]
[BlackFideId "14604264"]
[WhiteElo "1942"]
[BlackElo "1920"]

1. e4 {[%clk 00:09:58]} {[%emt 00:00:02]} e6 {[%clk 00:09:59]} {[%emt
00:00:01]} 2. d4 {[%clk 00:09:57]} {[%emt 00:00:01]} d5 {[%clk 00:09:58]}
{[%emt 00:00:02]} 3. Nd2 {[%clk 00:09:56]} c5 {[%clk 00:09:57]} {[%emt
00:00:01]} 4. Ngf3 {[%clk 00:09:55]} {[%emt 00:00:01]} a6 {[%clk 00:09:56]} 5.
c3 {[%clk 00:09:51]} {[%emt 00:00:04]} Nc6 {[%clk 00:09:55]} {[%emt 00:00:01]}
6. e5 {[%clk 00:09:23]} {[%emt 00:00:28]} h6 {[%clk 00:09:52]} {[%emt
00:00:03]} 7. Bd3 {[%clk 00:09:19]} {[%emt 00:00:05]} Qb6 {[%clk 00:09:49]}
{[%emt 00:00:03]} 8. Qb3 {[%clk 00:09:04]} {[%emt 00:00:15]} Qa7 {[%clk
00:09:47]} {[%emt 00:00:01]} 9. dxc5 {[%clk 00:08:51]} {[%emt 00:00:13]} Bxc5
{[%clk 00:09:45]} {[%emt 00:00:03]} 10. O-O {[%clk 00:08:48]} {[%emt 00:00:03]}
Na5 {[%clk 00:09:42]} {[%emt 00:00:03]} 11. Qc2 {[%clk 00:08:44]} {[%emt
00:00:03]} Nc6 {[%clk 00:09:38]} {[%emt 00:00:05]} 12. b4 {[%clk 00:08:38]}
{[%emt 00:00:06]} Bb6 {[%clk 00:09:34]} {[%emt 00:00:04]} 13. a4 {[%clk
00:08:32]} {[%emt 00:00:06]} Nge7 {[%clk 00:09:30]} {[%emt 00:00:04]} 14. Bb2
{[%clk 00:08:25]} {[%emt 00:00:07]} Bd7 {[%clk 00:09:27]} {[%emt 00:00:02]} 15.
c4 {[%clk 00:08:08]} {[%emt 00:00:17]} Nxb4 {[%clk 00:09:24]} {[%emt 00:00:03]}
16. Qb3 {[%clk 00:08:03]} {[%emt 00:00:06]} Nxd3 {[%clk 00:09:21]} {[%emt
00:00:03]} 17. Qxd3 {[%clk 00:08:01]} {[%emt 00:00:02]} dxc4 {[%clk 00:09:17]}
{[%emt 00:00:03]} 18. Nxc4 {[%clk 00:07:57]} {[%emt 00:00:04]} Bc5 {[%clk
00:09:12]} {[%emt 00:00:04]} 19. Ba3 {[%clk 00:07:45]} {[%emt 00:00:12]} Bxa3
{[%clk 00:09:09]} {[%emt 00:00:03]} 20. Rxa3 {[%clk 00:07:44]} {[%emt
00:00:02]} Nd5 {[%clk 00:08:45]} {[%emt 00:00:23]} 21. Nd6+ {[%clk 00:07:35]}
{[%emt 00:00:10]} Kf8 {[%clk 00:08:29]} {[%emt 00:00:17]} 22. Rb1 {[%clk
00:07:22]} {[%emt 00:00:12]} Rb8 {[%clk 00:08:24]} {[%emt 00:00:06]} 23. Nd4
{[%clk 00:06:18]} {[%emt 00:01:03]} g6 {[%clk 00:08:19]} {[%emt 00:00:05]} 24.
Qf3 {[%clk 00:05:46]} {[%emt 00:00:31]} Rh7 {[%clk 00:08:11]} {[%emt 00:00:09]}
25. Rd3 {[%clk 00:04:55]} {[%emt 00:00:51]} Rg7 {[%clk 00:08:03]} {[%emt
00:00:08]} 26. a5 {[%clk 00:04:40]} {[%emt 00:00:15]} Kg8 {[%clk 00:08:02]}
{[%emt 00:00:01]} 27. Ne2 {[%clk 00:04:00]} {[%emt 00:00:40]} Qc5 {[%clk
00:07:39]} {[%emt 00:00:23]} 28. Rxb7 {[%clk 00:03:38]} {[%emt 00:00:22]} Rxb7
{[%clk 00:07:27]} {[%emt 00:00:13]} 29. Nxb7 {[%clk 00:03:37]} {[%emt
00:00:01]} Qc4 {[%clk 00:07:03]} {[%emt 00:00:23]} 30. Nd6 {[%emt 00:00:17]}
Qc2 {[%clk 00:06:58]} 31. g3 {[%clk 00:03:19]} {[%emt 00:00:06]} Qb2 {[%clk
00:06:51]} {[%emt 00:00:08]} 32. Nd4 {[%clk 00:03:15]} {[%emt 00:00:04]} Qa1+
{[%clk 00:06:46]} {[%emt 00:00:04]} 33. Kg2 {[%clk 00:03:12]} {[%emt 00:00:03]}
Qxa5 {[%clk 00:06:40]} {[%emt 00:00:06]} 34. Ra3 {[%clk 00:03:08]} {[%emt
00:00:05]} Qc5 {[%emt 00:00:37]} 35. Qd3 {[%clk 00:02:44]} Nb4 {[%clk
00:06:17]} {[%emt 00:00:09]} 36. Qc3 {[%clk 00:02:40]} {[%emt 00:00:04]} Qxc3
{[%clk 00:05:49]} {[%emt 00:00:28]} 37. Rxc3 {[%clk 00:02:40]} a5 {[%clk
00:05:47]} {[%emt 00:00:02]} 38. Rc7 {[%clk 00:02:31]} {[%emt 00:00:08]} Ba4
{[%clk 00:05:31]} {[%emt 00:00:17]} 39. Ne8 {[%clk 00:02:23]} {[%emt 00:00:07]}
Bxe8 {[%clk 00:05:21]} {[%emt 00:00:10]} 40. Rc8 {[%clk 00:02:19]} {[%emt
00:00:04]} Kh7 {[%clk 00:05:17]} {[%emt 00:00:04]} 41. Rxe8 {[%clk 00:02:18]}
{[%emt 00:00:01]} a4 {[%clk 00:05:13]} {[%emt 00:00:05]} 42. Ra8 {[%clk
00:02:17]} Nd3 {[%clk 00:05:11]} {[%emt 00:00:02]} 43. f4 {[%clk 00:02:14]}
{[%emt 00:00:02]} Rg8 {[%clk 00:05:06]} {[%emt 00:00:05]} 44. Rxa4 {[%clk
00:02:13]} Rd8 {[%clk 00:05:05]} {[%emt 00:00:01]} 45. Kf3 {[%clk 00:02:08]}
{[%emt 00:00:04]} Nc5 {[%clk 00:05:02]} {[%emt 00:00:04]} 46. Rc4 {[%clk
00:02:06]} {[%emt 00:00:02]} Na6 {[%clk 00:04:54]} {[%emt 00:00:09]} 47. h4
{[%clk 00:02:05]} {[%emt 00:00:01]} Kg7 {[%clk 00:04:52]} {[%emt 00:00:01]} 48.
Ke4 {[%clk 00:02:03]} {[%emt 00:00:02]} h5 {[%clk 00:04:46]} {[%emt 00:00:07]}
49. Nb5 {[%clk 00:01:56]} {[%emt 00:00:07]} Rd1 {[%clk 00:04:41]} {[%emt
00:00:04]} 50. Nd6 {[%clk 00:01:54]} {[%emt 00:00:02]} Ra1 {[%clk 00:04:29]}
{[%emt 00:00:12]} 51. Ne8+ {[%clk 00:01:52]} {[%emt 00:00:02]} Kf8 {[%clk
00:04:28]} {[%emt 00:00:01]} 52. Nf6 {[%clk 00:01:51]} Ke7 {[%clk 00:04:26]}
{[%emt 00:00:03]} 53. Rd4 {[%clk 00:01:45]} {[%emt 00:00:06]} Nc5+ {[%clk
00:04:20]} {[%emt 00:00:06]} 54. Kf3 {[%emt 00:00:04]} Ra3+ {[%clk 00:04:17]}
{[%emt 00:00:01]} 55. Kg2 {[%clk 00:01:41]} {[%emt 00:00:02]} Ra2+ {[%clk
00:04:16]} {[%emt 00:00:01]} 56. Kh3 {[%clk 00:01:38]} {[%emt 00:00:02]} Ra7
{[%clk 00:04:11]} {[%emt 00:00:07]} 57. Rc4 {[%clk 00:01:36]} {[%emt 00:00:01]}
Nd3 {[%clk 00:04:02]} {[%emt 00:00:08]} 58. Rc8 {[%clk 00:01:34]} {[%emt
00:00:02]} Nxf4+ {[%clk 00:03:56]} {[%emt 00:00:06]} 59. gxf4 {[%clk 00:01:33]}
{[%emt 00:00:02]} Ra3+ {[%clk 00:03:55]} 60. Kg2 {[%clk 00:01:32]} {[%emt
00:00:02]} Ra2+ {[%clk 00:03:55]} 61. Kf3 {[%clk 00:01:31]} {[%emt 00:00:01]}
Ra3+ {[%clk 00:03:54]} 62. Ke2 {[%clk 00:01:31]} Ra2+ {[%clk 00:03:37]} {[%emt
00:00:17]} 63. Kd3 {[%clk 00:01:30]} Ra3+ {[%clk 00:03:35]} {[%emt 00:00:03]}
64. Kc2 {[%clk 00:01:29]} 1-0

[Event "Božićni turnir u VaraždinskimToplicama 26.12.2025."]
[Site "Varazdinske Toplice, Croatia"]
[Date "2025.12.26"]
[Round "9.11"]
[White "Sostaric, Denis"]
[Black "Kovacek, Pavlo"]
[Result "1-0"]
[TimeControl "10"]
[WhiteFideId "14615851"]
[BlackFideId "14559200"]
[WhiteElo "1868"]
[BlackElo "1704"]

1. e4 {[%clk 00:09:57]} {[%emt 00:00:03]} c5 {[%clk 00:10:00]} 2. Nf3 {[%clk
00:09:56]} e6 {[%clk 00:09:58]} {[%emt 00:00:01]} 3. d4 {[%clk 00:09:54]}
{[%emt 00:00:02]} cxd4 {[%clk 00:09:57]} {[%emt 00:00:02]} 4. Nxd4 {[%clk
00:09:53]} Nf6 {[%clk 00:09:55]} {[%emt 00:00:02]} 5. Bd3 {[%clk 00:09:50]}
{[%emt 00:00:02]} Nc6 {[%clk 00:09:54]} {[%emt 00:00:04]} 6. Nxc6 {[%clk
00:09:28]} {[%emt 00:00:20]} dxc6 {[%clk 00:09:52]} {[%emt 00:00:01]} 7. O-O
{[%clk 00:09:23]} {[%emt 00:00:05]} e5 {[%clk 00:09:51]} {[%emt 00:00:03]} 8.
h3 {[%clk 00:09:14]} {[%emt 00:00:08]} h6 {[%clk 00:09:46]} {[%emt 00:00:05]} 9.
Kh1 {[%clk 00:09:11]} {[%emt 00:00:03]} Be6 {[%clk 00:09:38]} {[%emt 00:00:09]}
10. f4 {[%clk 00:09:08]} {[%emt 00:00:01]} exf4 {[%clk 00:09:24]} {[%emt
00:00:15]} 11. Bxf4 {[%clk 00:09:05]} {[%emt 00:00:02]} Be7 {[%clk 00:09:18]}
{[%emt 00:00:06]} 12. Nc3 {[%clk 00:08:56]} {[%emt 00:00:10]} g5 {[%clk
00:08:46]} {[%emt 00:00:32]} 13. Be5 {[%clk 00:08:48]} {[%emt 00:00:08]} Rg8
{[%clk 00:08:35]} {[%emt 00:00:11]} 14. Qe2 {[%clk 00:08:31]} {[%emt 00:00:17]}
Nd7 {[%clk 00:08:19]} {[%emt 00:00:16]} 15. Bh2 {[%clk 00:08:17]} {[%emt
00:00:13]} Qa5 {[%clk 00:08:09]} {[%emt 00:00:11]} 16. Bc4 {[%clk 00:08:09]}
{[%emt 00:00:09]} O-O-O {[%clk 00:07:26]} {[%emt 00:00:42]} 17. Bxe6 {[%clk
00:08:02]} {[%emt 00:00:07]} fxe6 {[%clk 00:07:25]} {[%emt 00:00:01]} 18. Qc4
{[%clk 00:07:51]} {[%emt 00:00:11]} Rg6 {[%clk 00:07:11]} {[%emt 00:00:15]} 19.
Rf7 {[%clk 00:07:47]} {[%emt 00:00:03]} Qc5 {[%clk 00:06:06]} {[%emt 00:01:05]}
20. Qe2 {[%clk 00:07:39]} {[%emt 00:00:08]} Bd6 {[%clk 00:06:01]} {[%emt
00:00:05]} 21. e5 {[%clk 00:06:51]} {[%emt 00:00:49]} Bxe5 {[%clk 00:04:13]}
{[%emt 00:01:48]} 22. Rxd7 {[%clk 00:06:28]} {[%emt 00:00:21]} Rxd7 {[%clk
00:03:49]} {[%emt 00:00:25]} 23. Bxe5 {[%clk 00:06:26]} {[%emt 00:00:02]} g4
{[%clk 00:03:42]} {[%emt 00:00:07]} 24. Qe4 {[%clk 00:06:15]} {[%emt 00:00:10]}
Rg5 {[%clk 00:03:14]} {[%emt 00:00:29]} 25. Bf4 {[%clk 00:05:48]} {[%emt
00:00:26]} Rd4 {[%clk 00:02:57]} {[%emt 00:00:17]} 26. Qxe6+ {[%clk 00:05:45]}
{[%emt 00:00:02]} Kd8 {[%clk 00:02:29]} {[%emt 00:00:29]} 27. Bxg5+ {[%clk
00:05:38]} {[%emt 00:00:07]} Qxg5 {[%clk 00:02:16]} {[%emt 00:00:14]} 28. Ne4
{[%clk 00:05:05]} {[%emt 00:00:32]} Qe3 {[%clk 00:01:36]} {[%emt 00:00:40]} 29.
Qf6+ {[%clk 00:04:53]} {[%emt 00:00:11]} Kc7 {[%clk 00:01:32]} {[%emt
00:00:04]} 30. Qe7+ {[%clk 00:04:48]} {[%emt 00:00:05]} Kb6 {[%clk 00:01:26]}
{[%emt 00:00:07]} 31. Nd6 {[%clk 00:04:18]} {[%emt 00:00:30]} Qg3 {[%clk
00:01:04]} {[%emt 00:00:23]} 32. Qxb7+ {[%clk 00:04:08]} {[%emt 00:00:09]} Kc5
{[%clk 00:01:02]} {[%emt 00:00:02]} 33. b4+ {[%clk 00:03:25]} {[%emt 00:00:43]}
Kd5 {[%clk 00:00:54]} {[%emt 00:00:08]} 34. c4+ {[%clk 00:03:19]} {[%emt
00:00:06]} Ke5 {[%clk 00:00:37]} {[%emt 00:00:17]} 35. Nf7+ {[%clk 00:03:12]}
{[%emt 00:00:07]} Ke4 {[%clk 00:00:33]} {[%emt 00:00:04]} 36. Qxc6+ {[%clk
00:03:03]} {[%emt 00:00:10]} Ke3 {[%clk 00:00:30]} {[%emt 00:00:03]} 37. Qxh6+
{[%clk 00:02:53]} {[%emt 00:00:10]} Kf2 {[%clk 00:00:20]} {[%emt 00:00:10]} 38.
Qf6+ {[%clk 00:02:46]} {[%emt 00:00:05]} Ke3 {[%clk 00:00:14]} {[%emt
00:00:07]} 39. Qe5+ {[%clk 00:02:43]} {[%emt 00:00:03]} 1-0

[Event "Božićni turnir u VaraždinskimToplicama 26.12.2025."]
[Site "Varazdinske Toplice, Croatia"]
[Date "2025.12.26"]
[Round "9.12"]
[White "Obad, Damir"]
[Black "Novak, Milan"]
[Result "0-1"]
[TimeControl "10"]
[WhiteFideId "14514532"]
[BlackFideId "14532409"]
[WhiteElo "1999"]
[BlackElo "1853"]

1. e4 {[%clk 00:09:57]} {[%emt 00:00:02]} c5 {[%clk 00:09:57]} {[%emt
00:00:04]} 2. Nf3 {[%clk 00:09:54]} {[%emt 00:00:02]} d6 {[%clk 00:09:53]}
{[%emt 00:00:06]} 3. d4 {[%clk 00:09:53]} cxd4 {[%clk 00:09:52]} 4. Nxd4 {[%clk
00:09:52]} {[%emt 00:00:01]} Nf6 {[%clk 00:09:49]} {[%emt 00:00:02]} 5. Nc3
{[%clk 00:09:51]} {[%emt 00:00:02]} a6 {[%clk 00:09:48]} 6. Bg5 {[%clk
00:09:47]} {[%emt 00:00:04]} e6 {[%clk 00:09:43]} {[%emt 00:00:05]} 7. f4
{[%clk 00:09:42]} {[%emt 00:00:05]} Qc7 {[%clk 00:09:33]} {[%emt 00:00:10]} 8.
Qf3 {[%clk 00:09:39]} {[%emt 00:00:03]} Nbd7 {[%clk 00:09:25]} {[%emt
00:00:07]} 9. O-O-O {[%clk 00:09:33]} {[%emt 00:00:07]} h6 {[%clk 00:09:20]}
{[%emt 00:00:05]} 10. Bh4 {[%clk 00:09:18]} {[%emt 00:00:15]} b5 {[%clk
00:08:51]} {[%emt 00:00:29]} 11. g4 {[%clk 00:09:07]} {[%emt 00:00:11]} b4
{[%clk 00:08:34]} {[%emt 00:00:16]} 12. Nce2 {[%clk 00:09:00]} {[%emt
00:00:06]} Bb7 {[%clk 00:08:33]} {[%emt 00:00:03]} 13. Bxf6 {[%clk 00:08:42]}
{[%emt 00:00:18]} Nxf6 {[%clk 00:08:27]} {[%emt 00:00:06]} 14. Ng3 {[%clk
00:08:36]} {[%emt 00:00:06]} Rc8 {[%clk 00:08:09]} {[%emt 00:00:17]} 15. Bd3
{[%clk 00:08:21]} {[%emt 00:00:16]} Qb6 {[%clk 00:07:44]} {[%emt 00:00:24]} 16.
g5 {[%clk 00:08:18]} {[%emt 00:00:05]} Nd7 {[%clk 00:07:27]} {[%emt 00:00:16]}
17. Nb3 {[%clk 00:07:20]} {[%emt 00:00:58]} a5 {[%clk 00:07:15]} {[%emt
00:00:13]} 18. g6 {[%clk 00:07:06]} {[%emt 00:00:14]} f6 {[%clk 00:07:13]}
{[%emt 00:00:02]} 19. Qg4 {[%clk 00:06:53]} {[%emt 00:00:12]} d5 {[%clk
00:06:53]} {[%emt 00:00:20]} 20. exd5 {[%clk 00:06:42]} {[%emt 00:00:11]} Bxd5
{[%clk 00:06:50]} {[%emt 00:00:03]} 21. f5 {[%clk 00:05:30]} {[%emt 00:01:11]}
Bxh1 {[%clk 00:05:42]} {[%emt 00:01:08]} 22. Rxh1 {[%clk 00:04:40]} {[%emt
00:00:51]} Ne5 {[%clk 00:05:39]} {[%emt 00:00:03]} 23. Qe4 {[%clk 00:04:29]}
{[%emt 00:00:09]} Nxd3+ {[%clk 00:05:34]} {[%emt 00:00:07]} 24. Qxd3 {[%clk
00:04:24]} {[%emt 00:00:06]} Rd8 {[%clk 00:05:15]} {[%emt 00:00:18]} 25. Qe2
{[%clk 00:04:20]} {[%emt 00:00:04]} e5 {[%clk 00:05:05]} {[%emt 00:00:11]} 26.
Nh5 {[%clk 00:04:13]} {[%emt 00:00:05]} Rg8 {[%clk 00:04:39]} {[%emt 00:00:28]}
27. Nf4 {[%clk 00:04:07]} {[%emt 00:00:04]} Be7 {[%clk 00:04:28]} {[%emt
00:00:12]} 28. Ne6 {[%clk 00:04:05]} {[%emt 00:00:02]} Rd6 {[%clk 00:04:26]}
{[%emt 00:00:02]} 29. Nbc5 {[%clk 00:03:33]} {[%emt 00:00:32]} Rc6 {[%clk
00:04:19]} {[%emt 00:00:06]} 30. Qc4 {[%clk 00:02:51]} {[%emt 00:00:43]} Bxc5
{[%clk 00:04:14]} {[%emt 00:00:05]} 31. Nc7+ {[%clk 00:01:46]} {[%emt
00:01:05]} Rxc7 {[%clk 00:03:59]} {[%emt 00:00:15]} 32. Qxg8+ {[%clk 00:01:45]}
{[%emt 00:00:02]} Kd7 {[%clk 00:03:57]} {[%emt 00:00:01]} 33. Rd1+ {[%clk
00:01:40]} {[%emt 00:00:06]} Kc6 {[%clk 00:03:46]} {[%emt 00:00:10]} 34. Qd5+
{[%clk 00:01:34]} {[%emt 00:00:06]} Kb5 {[%clk 00:03:45]} {[%emt 00:00:01]} 35.
Qd3+ {[%clk 00:01:28]} {[%emt 00:00:06]} Kc6 {[%clk 00:03:43]} {[%emt
00:00:01]} 36. a4 {[%clk 00:01:19]} {[%emt 00:00:10]} Kb7 {[%clk 00:03:41]}
{[%emt 00:00:01]} 37. Qd5+ {[%clk 00:01:17]} {[%emt 00:00:03]} Qc6 {[%clk
00:03:40]} {[%emt 00:00:01]} 38. Qb3 {[%clk 00:01:09]} {[%emt 00:00:08]} Bd4
{[%clk 00:03:33]} {[%emt 00:00:07]} 39. Kb1 {[%clk 00:01:05]} {[%emt 00:00:05]}
Ka7 {[%clk 00:03:30]} {[%emt 00:00:02]} 40. Rd3 {[%clk 00:00:54]} {[%emt
00:00:10]} Qh1+ {[%clk 00:03:08]} {[%emt 00:00:23]} 41. Ka2 {[%clk 00:00:54]}
{[%emt 00:00:01]} Qg2 {[%clk 00:03:05]} {[%emt 00:00:02]} 42. Qd5 {[%clk
00:00:47]} {[%emt 00:00:07]} Qxd5+ {[%clk 00:02:50]} {[%emt 00:00:16]} 0-1

[Event "Božićni turnir u VaraždinskimToplicama 26.12.2025."]
[Site "Varazdinske Toplice, Croatia"]
[Date "2025.12.26"]
[Round "9.13"]
[White "Soelkner, Julian"]
[Black "Matkun, Josip"]
[Result "1-0"]
[TimeControl "10"]
[WhiteFideId "1665421"]
[BlackFideId "14513765"]
[WhiteElo "1661"]
[BlackElo "1832"]

1. d4 {[%clk 00:09:58]} {[%emt 00:00:02]} Nf6 {[%clk 00:09:58]} {[%emt
00:00:05]} 2. Nf3 {[%clk 00:09:55]} g6 {[%clk 00:09:56]} {[%emt 00:00:01]} 3.
c4 {[%clk 00:09:53]} {[%emt 00:00:02]} Bg7 {[%clk 00:09:54]} {[%emt 00:00:03]}
4. Nc3 {[%clk 00:09:52]} O-O {[%clk 00:09:52]} {[%emt 00:00:02]} 5. Bf4 {[%clk
00:09:48]} {[%emt 00:00:06]} d6 {[%clk 00:09:50]} 6. e3 {[%clk 00:09:46]}
{[%emt 00:00:02]} Bd7 {[%clk 00:09:39]} {[%emt 00:00:11]} 7. Be2 {[%clk
00:09:36]} {[%emt 00:00:10]} h6 {[%clk 00:09:37]} {[%emt 00:00:02]} 8. h3
{[%clk 00:09:09]} {[%emt 00:00:28]} Nc6 {[%clk 00:09:15]} {[%emt 00:00:21]} 9.
O-O {[%clk 00:09:03]} {[%emt 00:00:06]} Qc8 {[%clk 00:08:53]} {[%emt 00:00:22]}
10. Rb1 {[%clk 00:08:42]} {[%emt 00:00:21]} Re8 {[%clk 00:08:26]} {[%emt
00:00:27]} 11. Nd5 {[%clk 00:08:20]} {[%emt 00:00:22]} Nh5 {[%clk 00:07:51]}
{[%emt 00:00:35]} 12. Bh2 {[%clk 00:08:09]} {[%emt 00:00:12]} e6 {[%clk
00:07:47]} {[%emt 00:00:03]} 13. Nf4 {[%clk 00:07:40]} {[%emt 00:00:29]} Nxf4
{[%clk 00:07:42]} {[%emt 00:00:05]} 14. exf4 {[%clk 00:07:18]} {[%emt
00:00:22]} e5 {[%clk 00:07:17]} {[%emt 00:00:25]} 15. fxe5 {[%clk 00:07:06]}
{[%emt 00:00:12]} dxe5 {[%clk 00:07:16]} {[%emt 00:00:01]} 16. Nxe5 {[%clk
00:06:42]} {[%emt 00:00:24]} Nxe5 {[%clk 00:07:14]} {[%emt 00:00:02]} 17. Bxe5
{[%clk 00:06:39]} {[%emt 00:00:04]} Bxe5 {[%clk 00:07:09]} {[%emt 00:00:05]} 18.
dxe5 {[%clk 00:06:37]} {[%emt 00:00:01]} Rxe5 {[%clk 00:07:08]} {[%emt
00:00:02]} 19. Bf3 {[%clk 00:06:26]} {[%emt 00:00:10]} c6 {[%clk 00:06:38]}
{[%emt 00:00:30]} 20. Qd2 {[%clk 00:05:58]} {[%emt 00:00:29]} Kh7 {[%clk
00:06:13]} {[%emt 00:00:24]} 21. Rfe1 {[%clk 00:05:29]} {[%emt 00:00:29]} Rxe1+
{[%clk 00:05:44]} {[%emt 00:00:29]} 22. Rxe1 {[%clk 00:05:27]} {[%emt
00:00:02]} Be6 {[%clk 00:05:44]} 23. Qb4 {[%clk 00:04:25]} {[%emt 00:01:03]}
Qc7 {[%clk 00:05:37]} {[%emt 00:00:07]} 24. Rd1 {[%clk 00:03:58]} {[%emt
00:00:27]} a5 {[%clk 00:05:07]} {[%emt 00:00:29]} 25. Qc3 {[%clk 00:02:42]}
{[%emt 00:01:17]} Qe7 {[%clk 00:04:44]} {[%emt 00:00:22]} 26. a3 {[%clk
00:02:31]} {[%emt 00:00:11]} Qh4 {[%clk 00:04:07]} {[%emt 00:00:37]} 27. Rd4
{[%clk 00:02:27]} {[%emt 00:00:05]} Qf6 {[%clk 00:04:02]} {[%emt 00:00:03]} 28.
Qd3 {[%clk 00:02:18]} {[%emt 00:00:10]} Re8 {[%clk 00:03:47]} {[%emt 00:00:15]}
29. Qd2 {[%clk 00:01:49]} {[%emt 00:00:30]} c5 {[%clk 00:02:51]} {[%emt
00:00:55]} 30. Rd6 {[%clk 00:01:47]} {[%emt 00:00:02]} Rb8 {[%clk 00:02:02]}
{[%emt 00:00:49]} 31. Bd5 {[%clk 00:01:38]} {[%emt 00:00:10]} Qe5 {[%clk
00:01:48]} {[%emt 00:00:13]} 32. Bxe6 {[%clk 00:01:36]} {[%emt 00:00:02]} fxe6
{[%clk 00:01:45]} {[%emt 00:00:03]} 33. Rd7+ {[%clk 00:01:33]} {[%emt
00:00:03]} Kg8 {[%clk 00:01:41]} {[%emt 00:00:04]} 34. Qxh6 {[%clk 00:01:25]}
{[%emt 00:00:09]} Qh8 {[%clk 00:01:06]} {[%emt 00:00:35]} 35. Qxg6+ {[%clk
00:01:22]} {[%emt 00:00:02]} Kf8 {[%clk 00:01:05]} 36. Qf7# {[%clk 00:01:21]}
{[%emt 00:00:01]} 1-0